bitfinex/quotes_ETHUSD_20240810
["timestamp","ask_amount","ask_price","bid_price","bid_amount"]
[1723296164053,4.90389,2626.2,2625.5,4.03656867]
[1723296164054,1.90408,2626.0,2625.5,2.13222867]
[1723296164185,1.90408,2626.0,2625.3,25.5317367]
[1723296164385,1.90412,2625.9,2625.3,23.6272367]
[1723296164706,4.90412,2625.9,2625.3,23.6272367]
[1723296164894,4.90412,2625.9,2625.3,4.20939]
[1723296165586,4.90412,2625.9,2625.4,0.420939]
[1723296165787,2.3806,2625.8,2625.3,1.90449]
[1723296166727,4.28479,2625.8,2625.2,1.9046]
[1723296167024,3.0,2625.9,2624.7,7.49]
[1723296167025,2.3806,2625.1,2624.7,7.49]
[1723296167234,2.3806,2625.1,2624.5,3.81014]
[1723296167432,5.3806,2625.1,2624.5,3.81014]
[1723296167586,5.3806,2625.1,2624.5,1.90507]
[1723296170284,5.3806,2625.1,2624.2,9.8513]
[1723296170601,1.90502,2624.7,2624.2,7.49]
[1723296171235,3.0,2624.7,2624.2,7.49]
[1723296171717,4.90495,2624.8,2624.2,7.49]
[1723296172188,6.80991,2624.8,2624.2,7.49]
[1723296172693,6.80991,2624.8,2624.2,11.3202436]
[1723296172894,4.90495,2624.8,2624.2,11.3202436]
[1723296173320,2.3806,2624.6,2624.2,11.3202436]
[1723296173504,4.28566,2624.6,2624.2,7.49]
[1723296173886,2.3806,2624.5,2623.7,7.49]
[1723296174122,1.90471,2625.1,2623.7,7.49]
[1723296174123,2.3806,2624.1,2623.7,7.49]
[1723296174338,1.90549,2624.0,2623.4,19.4178467]
[1723296174631,5.565195,2624.1,2623.4,19.4178467]
[1723296174632,3.0,2624.1,2623.5,4.34133187]
[1723296174818,1.90539,2624.2,2623.5,4.34133187]
[1723296175128,1.90539,2624.2,2623.5,4.36384716]
[1723296175915,1.90539,2624.2,2623.5,4.36380716]
[1723296176153,1.90539,2624.2,2623.5,4.41751658]
[1723296176337,1.90577,2623.6,2623.5,0.07420187]
[1723296176537,2.3806,2623.8,2623.5,0.07420187]
[1723296176747,2.3806,2623.8,2623.1,1.90613]
[1723296176920,3.0,2624.1,2623.0,2.3613]
[1723296176921,5.3806,2624.1,2623.6,0.07310172]
[1723296177250,5.3806,2624.1,2623.7,0.07302841]
[1723296177547,5.3806,2624.1,2623.5,1.90584]
[1723296177852,5.3806,2624.1,2623.5,2.287017]
[1723296178061,5.3806,2624.1,2623.7,1.90568]
[1723296178248,3.0,2624.2,2623.8,1.90562]
[1723296178445,1.90522,2624.4,2623.8,1.90562]
[1723296178446,4.28572,2624.5,2623.8,1.97858292]
[1723296178617,2.3806,2624.5,2623.9,2.10339829]
[1723296179017,2.3806,2624.5,2624.0,0.07277731]
[1723296179217,7.04153,2624.8,2624.0,1.97824731]
[1723296179560,7.04153,2624.8,2624.1,2.12301056]
[1723296179861,1.90517,2624.5,2624.2,0.07252149]
[1723296180033,1.9052,2624.4,2624.2,0.07252149]
[1723296180421,4.28588,2624.3,2623.6,1.90574]
[1723296180643,1.90543,2624.1,2623.6,0.381163]
[1723296182323,1.90556,2623.9,2623.4,1.90585]
[1723296182516,2.3806,2623.8,2623.2,1.90602]
[1723296184203,4.28624,2623.8,2623.2,1.90602]
[1723296184498,4.90577,2623.7,2623.0,1.90618]
[1723296184686,4.90577,2623.7,2622.8,7.49]
[1723296184687,1.90592,2623.4,2622.8,7.49]
[1723296185001,1.906,2623.3,2622.7,19.4178467]
[1723296185206,1.90607,2623.2,2622.7,21.74093937]
[1723296186164,1.906,2623.3,2622.7,23.64731937]
[1723296186402,1.906,2623.3,2622.7,21.74093937]
[1723296186403,3.0,2623.3,2622.7,21.74093937]
[1723296186712,7.66178,2623.6,2623.0,1.90617]
[1723296186899,4.90578,2623.6,2623.0,1.90617]
[1723296187198,3.0,2623.6,2623.0,2.096787]
[1723296187402,3.0,2623.6,2622.4,7.49]
[1723296187403,1.90626,2623.0,2622.4,7.49]
[1723296187584,4.90619,2623.1,2622.3,1.90666]
[1723296187897,4.90619,2623.1,2622.5,1.90657]
[1723296189500,4.90619,2623.1,2622.6,0.07220868]
[1723296189916,3.0,2623.1,2622.6,0.07220868]
[1723296190628,4.90616,2623.1,2622.6,0.07220868]
[1723296191421,2.4278,2623.4,2622.6,0.07220868]
[1723296191422,2.4278,2623.4,2622.7,1.98261179]
[1723296191621,2.4278,2623.4,2622.9,1.90628]
[1723296191797,2.4278,2623.4,2623.0,0.07187226]
[1723296192634,0.59735115,2624.4,2623.0,0.07187226]
[1723296192635,5.1838,2623.8,2623.0,0.07187226]
[1723296192851,3.8995,2623.7,2623.0,0.07187226]
[1723296193001,7.71098,2623.7,2623.1,1.90608]
[1723296193204,7.71098,2623.7,2623.2,0.07169436]
[1723296193606,5.80521,2623.7,2623.2,0.07169436]
[1723296193820,5.80521,2623.7,2623.1,1.90608]
[1723296194013,5.80521,2623.7,2623.3,0.07160541]
[1723296194258,7.71097,2623.7,2623.3,0.07160541]
[1723296194541,7.71097,2623.7,2623.1,1.90608]
[1723296194933,5.80521,2623.7,2623.2,0.07169436]
[1723296195244,1.90578,2623.6,2622.9,3.81248]
[1723296195397,5.80521,2623.7,2622.9,2.514218]
[1723296195597,5.80521,2623.7,2622.9,1.90623]
[1723296195802,3.0,2623.7,2623.2,1.90605]
[1723296196002,3.0,2623.7,2623.3,0.07160541]
[1723296196203,2.4278,2623.8,2623.3,1.90593]
[1723296196433,2.4278,2623.8,2623.5,1.90584]
[1723296196599,4.66146,2624.1,2623.6,0.07133862]
[1723296196600,7.08926,2624.1,2623.6,0.07133862]
[1723296196799,1.9055,2624.0,2623.6,0.07133862]
[1723296197219,7.08926,2624.1,2623.4,2.096483]
[1723296197402,7.08926,2624.1,2623.5,0.47166884]
[1723296197604,4.90548,2624.0,2623.5,0.47166884]
[1723296197847,4.90548,2624.0,2623.5,2.37749884]
[1723296197848,3.0,2624.0,2623.5,2.37749884]
[1723296198103,1.90529,2624.3,2623.5,24.06270554]
[1723296198247,1.90529,2624.3,2623.6,2.42532985]
[1723296198411,1.90529,2624.3,2623.6,2.49666847]
[1723296198613,3.81061,2624.3,2623.7,1.90569]
[1723296198834,1.90529,2624.3,2623.8,0.07116079]
[1723296199047,1.90529,2624.3,2623.7,1.90569]
[1723296199317,1.90529,2624.3,2623.9,0.07107189]
[1723296199542,4.90529,2624.3,2623.7,4.73792279]
[1723296199725,4.90529,2624.3,2624.0,0.070983]
[1723296199935,1.90534,2624.2,2623.5,23.991288]
[1723296200141,3.0,2624.2,2624.1,0.07089411]
[1723296200453,3.0,2624.2,2623.6,4.3048888]
[1723296200661,4.90529,2624.3,2624.1,0.07065267]
[1723296200829,3.0,2624.3,2623.8,1.90558]
[1723296201018,3.0,2624.3,2623.9,0.381126]
[1723296201218,3.0,2624.3,2623.9,0.45154753]
[1723296201534,1.90548,2624.0,2623.9,0.07042153]
[1723296201954,1.90556,2623.9,2623.5,19.4178467]
[1723296202629,4.90556,2623.9,2623.5,19.4178467]
[1723296202857,1.90556,2623.9,2623.5,19.4178467]
[1723296203083,3.0,2624.0,2623.5,21.77696937]
[1723296203368,1.90543,2624.1,2623.5,21.77696937]
[1723296203747,6.81062,2624.3,2623.6,1.90576]
[1723296203928,3.0,2624.3,2623.8,1.90558]
[1723296204133,1.90505,2624.6,2623.9,2.096088]
[1723296204333,1.90519,2624.4,2623.9,0.190558]
[1723296204544,1.90519,2624.4,2623.7,21.3235067]
[1723296204775,3.81044,2624.4,2624.0,0.07033263]
[1723296204984,3.81044,2624.4,2623.7,21.3235067]
[1723296204985,1.90527,2624.3,2623.7,21.3235067]
[1723296205153,1.90534,2624.2,2624.1,0.07024375]
[1723296205351,1.90534,2624.2,2623.7,19.4178467]
[1723296205845,1.90534,2624.2,2623.8,0.07051043]
[1723296206040,1.90534,2624.2,2623.7,19.4178467]
[1723296206247,1.90534,2624.2,2623.8,0.07051043]
[1723296206455,1.90534,2624.2,2623.7,22.01286064]
[1723296206655,4.16844,2624.2,2623.9,0.07042153]
[1723296206847,3.0,2624.3,2623.7,22.01286064]
[1723296207178,3.0,2624.4,2624.0,0.07028592]
[1723296207346,3.0,2624.4,2624.0,1.90544]
[1723296207681,1.90513,2624.5,2624.1,0.07019703]
[1723296207834,3.0,2624.5,2624.0,2.4461]
[1723296208039,3.0,2624.7,2624.1,0.1463952]
[1723296208664,3.0,2624.7,2624.1,0.07018925]
[1723296209036,3.0,2624.7,2624.1,0.14639402]
[1723296209383,3.0,2624.7,2624.1,2.52819433]
[1723296209597,3.0,2624.7,2624.1,4.43359433]
[1723296211151,3.0,2624.7,2624.2,1.90534]
[1723296211484,3.0,2624.7,2624.3,0.06968516]
[1723296211683,3.0,2624.7,2624.5,1.90511]
[1723296211851,3.0,2625.0,2624.5,1.90511]
[1723296212053,3.0,2625.0,2624.6,0.06939523]
[1723296213494,1.90463,2625.2,2624.6,1.97443523]
[1723296213790,2.561143,2625.2,2624.6,1.97443523]
[1723296213957,3.0,2625.1,2624.6,1.97443523]
[1723296214301,4.1676,2625.4,2624.8,1.90488]
[1723296214791,2.2631,2625.4,2624.9,0.0691287]
[1723296215981,4.16761,2625.4,2624.9,0.0691287]
[1723296216183,3.0,2625.3,2624.9,0.0691287]
[1723296216553,3.0,2625.5,2624.9,2.20831424]
[1723296216899,3.0,2625.6,2625.1,1.90466]
[1723296217406,3.0,2625.6,2625.2,1.97332049]
[1723296217578,4.90419,2625.8,2625.2,1.97332049]
[1723296217778,5.786923,2625.8,2625.2,1.97332049]
[1723296218367,1.90419,2625.8,2625.2,1.97332049]
[1723296218567,1.90419,2625.8,2625.3,1.90452]
[1723296218982,1.90419,2625.8,2625.4,0.06831119]
[1723296220492,4.90419,2625.8,2625.4,0.06831119]
[1723296222300,1.90426,2625.7,2625.1,4.35074]
[1723296222481,3.0,2625.7,2625.5,0.06769339]
[1723296222802,3.0,2625.7,2625.2,0.46292399]
[1723296223001,4.90419,2625.8,2625.6,0.06759683]
[1723296223182,4.90419,2625.8,2625.2,0.46292399]
[1723296223502,4.90419,2625.8,2625.1,4.35072]
[1723296223701,4.90419,2625.8,2625.3,0.06785155]
[1723296224021,4.90419,2625.8,2625.1,4.35072]
[1723296224522,1.90432,2625.7,2625.2,0.06794036]
[1723296224662,4.90432,2625.7,2625.2,0.06794036]
[1723296224865,4.90432,2625.7,2625.2,2.45159107]
[1723296225065,3.0,2625.7,2625.2,2.45159107]
[1723296225265,3.0,2625.8,2625.2,2.45159107]
[1723296225464,1.90453,2625.4,2625.2,0.06794036]
[1723296225674,1.90453,2625.4,2625.0,19.4178467]
[1723296225881,3.0,2625.4,2625.3,0.06787876]
[1723296226103,3.0,2625.5,2625.0,21.3225967]
[1723296226308,1.90439,2625.5,2625.3,0.06789432]
[1723296226494,4.90439,2625.5,2625.0,19.4178467]
[1723296226696,1.90451,2625.4,2625.0,19.4178467]
[1723296226866,4.90451,2625.4,2625.0,19.4178467]
[1723296227305,1.90451,2625.4,2625.0,19.4178467]
[1723296227714,1.90451,2625.4,2625.0,22.29912137]
[1723296228988,3.0,2625.5,2625.0,22.29912137]
[1723296229191,4.90436,2625.6,2625.0,22.29912137]
[1723296229979,1.90441,2625.5,2625.0,22.29912137]
[1723296230325,1.90448,2625.4,2625.0,22.29912137]
[1723296230611,4.90448,2625.4,2625.0,22.29912137]
[1723296230811,1.90448,2625.4,2625.0,2.88127467]
[1723296231410,1.90448,2625.4,2624.8,21.3226967]
[1723296231780,1.90448,2625.4,2624.8,19.4178467]
[1723296232186,1.90462,2625.2,2624.8,19.4178467]
[1723296232494,1.90473,2625.1,2624.8,19.4178467]
[1723296232692,1.90478,2625.0,2624.8,19.4178467]
[1723296233818,1.90483,2624.9,2624.8,19.4178467]
[1723296234023,1.90483,2624.9,2624.2,12.31]
[1723296234024,3.0,2624.9,2624.2,19.4178467]
[1723296234186,1.90497,2624.8,2624.2,1.66734051]
[1723296234388,1.90499,2624.7,2624.1,4.23306]
[1723296234728,1.90499,2624.7,2624.2,0.06901155]
[1723296234938,1.90509,2624.6,2624.2,0.49921871]
[1723296235928,1.90509,2624.6,2624.2,0.06901155]
[1723296236132,1.90509,2624.6,2623.9,1.9055]
[1723296236340,1.90509,2624.6,2624.3,0.06892267]
[1723296236498,1.90509,2624.6,2623.9,1.9055]
[1723296236692,1.90509,2624.6,2624.4,0.06883381]
[1723296236693,1.90512,2624.5,2624.4,0.06883381]
[1723296236892,1.90512,2624.5,2623.9,1.9055]
[1723296237133,1.90509,2624.6,2624.4,0.06883381]
[1723296237336,1.90509,2624.6,2624.0,0.42332]
[1723296237634,1.90509,2624.6,2624.5,0.06874494]
[1723296238098,1.90509,2624.6,2624.0,2.32874]
[1723296238441,1.90509,2624.6,2624.5,0.06874494]
[1723296238612,1.90509,2624.6,2624.1,0.423423]
[1723296238935,1.90509,2624.6,2624.2,0.06901155]
[1723296239118,1.90519,2624.5,2624.2,0.06901155]
[1723296239319,1.90519,2624.5,2623.9,1.90549]
[1723296239523,1.90519,2624.5,2624.3,0.06892267]
[1723296239722,1.90519,2624.5,2624.0,0.423319]
[1723296239911,1.90519,2624.5,2624.4,0.06916056]
[1723296240106,1.90509,2624.6,2624.0,0.423319]
[1723296240299,3.0,2624.7,2624.4,0.06916056]
[1723296240608,3.0,2624.7,2624.1,4.08007557]
[1723296240609,3.0,2624.7,2624.3,1.90525]
[1723296240791,3.0,2624.9,2624.5,0.0690717]
[1723296241019,1.90479,2625.0,2624.4,1.90519]
[1723296241020,4.90479,2625.0,2624.4,1.97435056]
[1723296241220,4.90479,2625.0,2624.6,0.06898285]
[1723296241534,4.90479,2625.0,2624.7,0.068894]
[1723296241708,4.90479,2625.0,2624.4,1.90519]
[1723296241909,4.90479,2625.0,2624.8,0.06878959]
[1723296242223,1.90531,2624.3,2623.5,4.23349]
[1723296242430,1.90541,2624.1,2623.5,6.13928]
[1723296242599,1.90541,2624.1,2623.6,0.07014011]
[1723296242935,1.90541,2624.1,2623.6,0.69108212]
[1723296244313,1.90553,2624.0,2623.6,0.07014011]
[1723296244512,4.90553,2624.0,2623.4,1.90592]
[1723296244717,4.90553,2624.0,2623.7,0.07030026]
[1723296244718,3.0,2624.0,2623.7,0.07030026]
[1723296245035,3.0,2624.2,2623.7,1.90569]
[1723296245199,4.90513,2624.5,2623.8,0.49355035]
[1723296245399,3.0,2624.6,2623.9,1.90551]
[1723296245600,3.0,2624.6,2624.0,1.90543]
[1723296245833,3.0,2624.6,2624.1,0.381094]
[1723296246132,3.0,2624.6,2624.2,1.90534]
[1723296246335,3.0,2624.6,2624.2,1.9751841]
[1723296246537,3.0,2624.6,2624.2,0.0698441]
[1723296246538,4.90512,2624.6,2624.2,0.0698441]
[1723296246836,3.0,2624.6,2623.9,1.90552]
[1723296247045,3.0,2624.6,2624.3,0.06975523]
[1723296247224,3.0,2624.6,2624.0,0.4596659]
[1723296247421,1.90515,2624.5,2624.4,0.06966636]
[1723296247623,3.0,2624.6,2624.0,2.3651459]
[1723296247813,3.0,2624.6,2624.4,0.06955738]
[1723296248140,3.0,2624.6,2624.5,0.06946851]
[1723296248520,3.0,2624.6,2624.1,2.14185459]
[1723296248725,3.0,2624.6,2624.5,0.06946851]
[1723296248948,3.0,2624.6,2624.1,2.14185459]
[1723296248949,3.0,2624.6,2624.2,1.90531]
[1723296249110,5.3524,2624.7,2624.5,0.06944906]
[1723296249314,5.3524,2624.7,2624.2,1.90531]
[1723296249514,5.3524,2624.7,2624.6,0.0693602]
[1723296249709,5.3524,2624.7,2624.2,1.90531]
[1723296249940,3.0,2624.7,2624.6,0.0693602]
[1723296250144,4.90486,2624.9,2624.3,1.90526]
[1723296250413,4.90486,2624.9,2624.6,0.0693602]
[1723296250614,6.2042099,2624.9,2624.2,2.35598705]
[1723296250825,4.90486,2624.9,2624.7,0.06927135]
[1723296251065,1.90493,2624.8,2624.2,1.90529]
[1723296251348,1.90493,2624.8,2624.3,0.06962679]
[1723296251349,1.90498,2624.7,2624.3,0.06962679]
[1723296251520,1.90498,2624.7,2624.1,0.23651459]
[1723296251720,1.90498,2624.7,2624.4,0.06953792]
[1723296252051,1.90512,2624.5,2623.9,19.4178467]
[1723296252458,1.90512,2624.5,2623.9,21.3233867]
[1723296252459,4.90512,2624.5,2623.9,21.3233867]
[1723296252970,1.90531,2624.3,2623.9,19.4178467]
[1723296253319,4.33201,2624.2,2623.9,19.4178467]
[1723296253718,6.2374,2624.2,2623.9,19.4178467]
[1723296253916,4.33199,2624.2,2623.9,19.4178467]
[1723296255123,1.90548,2624.0,2623.9,19.4178467]
[1723296255447,1.90548,2624.0,2623.5,19.4178467]
[1723296255625,1.90548,2624.0,2623.5,22.52599737]
[1723296256635,1.90563,2623.8,2623.5,19.4178467]
[1723296257320,4.33223,2623.8,2623.5,19.4178467]
[1723296257521,3.0,2623.7,2623.5,19.4178467]
[1723296258336,4.90572,2623.7,2623.5,19.4178467]
[1723296260427,4.90572,2623.7,2623.4,19.4178467]
[1723296261060,3.0,2623.7,2623.4,19.4178467]
[1723296261247,2.756,2624.2,2623.5,2.2678]
[1723296261248,3.0,2623.9,2623.5,2.2678]
[1723296261582,7.33206,2624.1,2623.5,2.2678]
[1723296261748,1.90548,2624.0,2623.5,4.1736]
[1723296262463,1.90548,2624.0,2623.5,6.72692314]
[1723296262662,1.90548,2624.0,2623.5,4.45912314]
[1723296264676,4.3323,2623.7,2623.6,0.07035414]
[1723296264873,6.238,2623.7,2623.6,0.07035414]
[1723296265059,1.90593,2623.4,2622.9,9.39622]
[1723296265267,1.90593,2623.4,2623.0,1.166402]
[1723296265581,1.90593,2623.4,2622.8,4.17412]
[1723296265776,3.0,2623.5,2623.1,1.90613]
[1723296265966,4.90578,2623.6,2623.1,1.90613]
[1723296266162,3.0,2623.6,2623.1,2.287368]
[1723296266372,3.0,2623.6,2623.1,2.287328]
[1723296266560,7.33231,2623.7,2623.1,2.287328]
[1723296266878,1.90585,2623.5,2623.1,0.381238]
[1723296269673,1.90585,2623.5,2622.9,1.90623]
[1723296270774,3.0,2623.6,2622.8,19.4178467]
[1723296270775,1.90612,2623.2,2622.8,19.4178467]
[1723296270974,1.90623,2623.0,2622.8,19.4178467]
[1723296271377,3.8125,2623.0,2622.8,19.4178467]
[1723296271594,1.90623,2623.0,2622.8,19.4178467]
[1723296272586,3.8125,2623.0,2622.8,19.4178467]
[1723296272795,1.90623,2623.0,2622.3,1.90667]
[1723296272995,1.90623,2623.0,2622.3,2.52793]
[1723296274352,1.90637,2622.8,2622.3,2.52793]
[1723296275300,1.90623,2623.0,2622.3,4.4346]
[1723296275594,4.90609,2623.2,2622.4,0.68337]
[1723296275800,4.90609,2623.2,2622.5,1.90652]
[1723296276946,6.81221,2623.2,2622.5,1.90652]
[1723296277151,1.90619,2623.1,2622.5,1.90652]
[1723296277549,4.90609,2623.2,2622.3,1.90668]
[1723296277550,1.90622,2623.0,2622.3,1.90667]
[1723296277755,1.90622,2623.0,2622.4,0.430577]
[1723296278355,3.81249,2623.0,2622.4,0.430577]
[1723296278555,1.90643,2622.7,2622.1,1.90683]
[1723296279180,1.90666,2622.4,2622.0,7.49]
[1723296279380,1.90666,2622.4,2621.9,21.8169467]
[1723296279569,1.90666,2622.4,2621.9,21.98096437]
[1723296279774,1.90666,2622.4,2622.1,0.0726101]
[1723296279974,1.90666,2622.4,2621.9,21.98096437]
[1723296280174,1.90666,2622.4,2622.2,0.07252108]
[1723296280372,1.90666,2622.4,2621.9,19.4178467]
[1723296280656,1.90666,2622.4,2622.3,0.07243207]
[1723296280862,1.90666,2622.4,2621.9,19.4178467]
[1723296281160,1.90666,2622.4,2621.9,21.79025237]
[1723296281369,1.90666,2622.4,2622.0,0.07282379]
[1723296281896,1.90666,2622.4,2621.6,21.3250667]
[1723296282193,2.3448,2622.5,2621.5,11.79638]
[1723296282194,1.9068,2622.2,2621.5,11.79638]
[1723296282393,1.9068,2622.2,2621.7,0.07317663]
[1723296282602,1.9068,2622.2,2621.5,17.01576367]
[1723296282800,4.90668,2622.4,2621.8,0.07308759]
[1723296282969,3.0,2622.4,2621.5,13.20126367]
[1723296283189,2.3448,2622.5,2622.1,1.90685]
[1723296283190,3.0,2622.5,2622.1,1.90685]
[1723296283389,4.90653,2622.6,2622.1,1.90685]
[1723296283571,4.90653,2622.6,2622.2,0.07276655]
[1723296284395,3.0,2622.6,2622.2,1.97954655]
[1723296284597,3.0,2622.7,2622.3,1.90667]
[1723296284798,3.0,2622.7,2622.4,1.90663]
[1723296285004,3.0,2622.9,2622.4,1.97923802]
[1723296285203,3.0,2622.9,2622.4,0.07260802]
[1723296285376,4.000704,2622.9,2622.4,0.07260802]
[1723296286408,4.000704,2622.9,2622.4,1.97924802]
[1723296286573,3.0,2622.9,2622.4,1.97924802]
[1723296287304,3.0,2622.9,2622.4,0.07260802]
[1723296288414,3.0,2622.9,2622.4,1.97924802]
[1723296289215,3.0,2622.9,2622.4,0.07260802]
[1723296289514,2.3448,2623.1,2622.5,1.90652]
[1723296289689,2.3448,2623.1,2622.6,0.1979128]
[1723296289875,2.3448,2623.1,2622.6,0.27052593]
[1723296290079,1.90594,2623.4,2622.8,1.9063]
[1723296290285,2.3849,2623.5,2622.9,0.19063]
[1723296290612,2.3849,2623.7,2623.0,1.9062]
[1723296290910,1.9062,2623.1,2622.9,0.0723462]
[1723296291110,1.9062,2623.1,2622.4,9.39664]
[1723296291507,1.9063,2622.9,2622.3,23.7950367]
[1723296291711,4.19389,2622.9,2622.2,1.90673]
[1723296291882,4.90636,2622.8,2622.2,1.90673]
[1723296292290,1.90645,2622.7,2622.1,4.37736]
[1723296292481,1.90645,2622.7,2622.1,7.69657067]
[1723296292905,3.0,2622.8,2622.1,7.69657067]
[1723296292906,3.0,2622.8,2622.4,1.90664]
[1723296293231,4.29112,2623.0,2622.4,1.90664]
[1723296293232,3.0,2622.9,2622.4,1.90664]
[1723296293522,4.90631,2622.9,2622.2,3.81345]
[1723296293820,4.90631,2622.9,2622.2,6.71555074]
[1723296294124,3.0,2622.9,2622.4,1.90664]
[1723296294526,3.0,2622.9,2622.5,0.07252677]
[1723296295390,4.90629,2622.9,2622.5,0.07252677]
[1723296295590,1.90641,2622.8,2622.5,0.07252677]
[1723296296037,1.90641,2622.8,2622.2,1.90672]
[1723296296186,1.90641,2622.8,2622.6,0.07243778]
[1723296296385,1.90641,2622.8,2622.2,1.90672]
[1723296296587,1.90641,2622.8,2622.3,0.07270477]
[1723296296805,1.90648,2622.7,2622.0,21.3247667]
[1723296297021,1.90658,2622.5,2622.4,0.07265862]
[1723296297434,1.90658,2622.5,2622.0,19.4178467]
[1723296297621,1.90658,2622.5,2622.4,0.07265862]
[1723296297823,1.90658,2622.5,2622.0,19.4178467]
[1723296298018,1.90658,2622.5,2622.4,0.07265862]
[1723296298333,4.29148,2622.5,2622.4,0.07265862]
[1723296298531,4.29148,2622.5,2622.0,19.4178467]
[1723296298704,4.29148,2622.5,2622.1,0.07292566]
[1723296298908,1.90658,2622.5,2622.1,0.07292566]
[1723296300528,3.81321,2622.5,2622.1,0.07292566]
[1723296301117,1.90658,2622.5,2622.1,0.07292566]
[1723296301645,3.0,2622.6,2622.4,1.90664]
[1723296301841,1.90631,2622.9,2622.1,5.50846812]
[1723296301842,4.90631,2622.9,2622.1,5.50846812]
[1723296302002,4.90631,2622.9,2622.5,0.07272938]
[1723296302202,4.90631,2622.9,2622.1,5.43554246]
[1723296302399,4.90631,2622.9,2622.6,0.07264039]
[1723296302619,4.90631,2622.9,2622.4,2.4705]
[1723296302620,3.0,2622.9,2622.4,2.4705]
[1723296302945,2.3849,2623.3,2622.8,1.9063]
[1723296303287,2.3849,2623.3,2622.9,0.07230721]
[1723296303440,1.90592,2623.4,2622.9,0.07230721]
[1723296303596,1.90589,2623.5,2622.9,0.07230721]
[1723296303804,1.90589,2623.5,2623.0,1.9062]
[1723296304046,5.05503027,2623.7,2623.1,0.07212929]
[1723296304250,2.3849,2623.7,2623.3,1.90596]
[1723296304404,1.90558,2623.9,2623.3,1.90596]
[1723296304723,1.90558,2623.9,2623.4,0.07186246]
[1723296305613,4.90558,2623.9,2623.4,0.07186246]
[1723296306435,1.9057,2623.7,2623.4,0.07186246]
[1723296306635,1.9057,2623.7,2623.1,1.90611]
[1723296306905,1.9057,2623.7,2623.1,4.22912567]
[1723296307110,1.9057,2623.7,2623.2,0.07192735]
[1723296307739,3.0,2623.8,2623.3,1.90598]
[1723296307936,1.90558,2623.9,2623.4,0.07174947]
[1723296307937,4.90558,2623.9,2623.4,0.07174947]
[1723296309061,3.0,2623.9,2623.4,0.12493767]
[1723296309235,4.90536,2624.2,2623.6,1.90576]
[1723296309415,1.90536,2624.2,2623.6,2.10882977]
[1723296309621,1.90536,2624.2,2623.7,0.0711945]
[1723296310528,4.34929,2624.3,2623.7,0.0711945]
[1723296310733,4.34929,2624.3,2623.7,0.52825693]
[1723296310930,3.0,2624.2,2623.7,0.52825693]
[1723296311335,3.0,2624.2,2623.7,2.43390693]
[1723296311863,3.0,2624.2,2623.7,0.52825693]
[1723296312032,3.0,2624.2,2623.7,0.0711945]
[1723296315282,1.90563,2623.8,2623.7,0.0711945]
[1723296315792,4.90563,2623.8,2623.7,0.06815672]
[1723296316076,4.90563,2623.8,2623.4,19.4178467]
[1723296316248,4.90563,2623.8,2623.7,0.06823439]
[1723296316873,4.90563,2623.8,2623.4,19.4178467]
[1723296317378,4.90563,2623.8,2623.5,0.06841223]
[1723296318277,6.81132,2623.8,2623.5,0.06841223]
[1723296318777,7.736852,2623.8,2623.5,0.06841223]
[1723296319071,1.9057,2623.7,2623.5,0.06841223]
[1723296319281,3.81154,2623.6,2623.5,0.06841223]
[1723296319446,1.90589,2623.5,2622.8,3.81261]
[1723296319654,3.0,2623.5,2623.0,1.9062]
[1723296320038,3.0,2623.7,2623.1,0.06883791]
[1723296320439,1.90582,2623.6,2623.1,0.06883791]
[1723296320671,1.90586,2623.5,2623.1,0.06883791]
[1723296320878,3.0,2623.5,2623.1,0.06883791]
[1723296321074,3.0,2623.5,2622.8,1.9063]
[1723296321276,3.0,2623.5,2623.2,0.06874896]
[1723296321570,3.0,2623.5,2623.3,0.06866001]
[1723296321776,1.90592,2623.4,2622.8,1.9063]
[1723296321976,4.90592,2623.4,2622.9,0.06901583]
[1723296322368,1.90592,2623.4,2622.9,0.06901583]
[1723296323064,3.0,2623.5,2622.9,0.06901583]
[1723296323065,3.0,2623.5,2623.0,1.9062]
[1723296323411,3.0,2623.5,2623.1,0.06893892]
[1723296323570,1.90582,2623.6,2623.1,0.06893892]
[1723296331417,1.90589,2623.5,2623.1,0.06893892]
[1723296331615,4.90589,2623.5,2622.8,25.1543903]
[1723296331927,1.90608,2623.2,2622.9,0.06935767]
[1723296332283,1.90608,2623.2,2622.7,2.3906]
[1723296332507,1.90608,2623.2,2623.0,0.06927648]
[1723296332702,1.90608,2623.2,2622.7,2.3906]
[1723296332920,1.90608,2623.2,2623.1,0.06918752]
[1723296333215,1.90608,2623.2,2622.7,2.3906]
[1723296333391,3.0,2623.3,2622.8,0.06950881]
[1723296333718,3.0,2623.3,2622.9,1.90625]
[1723296333886,4.90587,2623.5,2622.9,1.97566984]
[1723296334300,3.0,2623.5,2622.9,0.06941984]
[1723296334502,1.9058,2623.6,2622.9,0.06941984]
[1723296334824,1.9058,2623.6,2623.0,1.90619]
[1723296335012,3.81163,2623.6,2623.1,0.06924192]
[1723296335181,3.0,2623.5,2623.1,0.06924192]
[1723296335717,1.9058,2623.6,2623.1,0.06924192]
[1723296337398,2.9187392,2623.6,2623.1,0.06924192]
[1723296337583,3.0,2623.5,2623.1,0.06924192]
[1723296338333,4.9059,2623.5,2623.1,0.06924192]
[1723296338696,4.9059,2623.5,2622.8,21.3241767]
[1723296339223,3.0,2623.5,2622.9,1.97565984]
[1723296339390,1.90592,2623.4,2622.9,1.97565984]
[1723296339986,1.90567,2623.8,2623.0,2.2753]
[1723296340186,1.90567,2623.8,2623.1,1.97533192]
[1723296340423,1.90567,2623.8,2623.1,0.06924192]
[1723296340424,1.90578,2623.6,2623.1,0.06924192]
[1723296340794,3.81137,2623.8,2623.1,1.97533192]
[1723296341126,2.3924,2623.9,2623.3,2.2753]